fUSD/lending_fUSD_20240704
["ID","MTS","AMOUNT","RATE_DAILY","PERIOD"]
[331088104,1720074638240,-453.18858096,0.000149,2]
[331088105,1720074638253,-813.90015,0.000149,2]
[331088106,1720074638266,-421.399227,0.000149,2]
[331088107,1720074638279,-13257.83964111,0.000149,2]
[331088108,1720074638288,-7730.25253165,0.000149,2]
[331088109,1720074638299,-307.71884386,0.000149,2]
[331088110,1720074638308,-2056.79648795,0.000149,2]
[331088111,1720074638318,-2268.3890246,0.000149,2]
[331088112,1720074638336,-3802.2878179,0.000149,2]
[331088113,1720074638348,-5155.13698744,0.000149,2]
[331088114,1720074638358,-150.0,0.00014915,2]
[331088115,1720074638369,-150.0,0.00014925,2]
[331088116,1720074638379,-150.0,0.00014948,2]
[331088117,1720074638390,-150.0,0.00014962,2]
[331088118,1720074638400,-150.0,0.00014984,2]
[331088119,1720074638409,-880.12,0.0001499,3]
[331088120,1720074638419,-150.0,0.00014993,2]
[331088121,1720074638428,-302.27324941,0.00014999,2]
[331088122,1720074638438,-167.65975899,0.00015,2]
[331088123,1720074638454,-864.32260652,0.00015,2]
[331088124,1720074638466,-269.49698536,0.00015,2]
[331088126,1720074638477,-295.82028696,0.00015,2]
[331088129,1720074638489,-956.99378914,0.00015,2]
[331088131,1720074638501,-264.54053448,0.00015,2]
[331088133,1720074638512,-1818.03708386,0.00015,2]
[331088137,1720074638541,-463458.3689264,0.00015,2]
[331088140,1720074638559,-73430.45188998,0.00015,2]
[331088142,1720074638571,-332.57131004,0.00015,2]
[331088144,1720074638584,-5911.40242929,0.00015,2]
[331088146,1720074638595,-544.38170658,0.00015,2]
[331088149,1720074638607,-8211.25435294,0.00015,2]
[331088151,1720074638619,-6561.3347441,0.00015,2]
[331088153,1720074638631,-76719.861807,0.00015,2]
[331088155,1720074638643,-2182.3656423,0.00015,2]
[331088159,1720074638668,-7840.15579188,0.00015,2]
[331088161,1720074638680,-861.77248483,0.00015,2]
[331088303,1720074640228,-266.40039063,0.00013736,2]
[331088305,1720074640239,-3637.32752582,0.00015,2]
[331088307,1720074640251,-563.21663336,0.00015,2]
[331088309,1720074640268,-5071.43030025,0.00015,2]
[331088320,1720074640378,-907.39887062,0.00015,2]
[331088322,1720074640390,-2956.72187668,0.00015,2]
[331088554,1720074642796,-6582.02504383,0.00015,2]
[331088557,1720074642808,-40248.90461424,0.00015,2]
[331088559,1720074642820,-663.40626513,0.00015,2]
[331088562,1720074642833,-72285.40590301,0.00015,2]
[331088564,1720074642846,-1017.62991835,0.00015,2]
[331088576,1720074642942,-3896.57759999,0.00015,2]
[331088578,1720074642954,-830.28080912,0.00015,2]
[331088592,1720074643077,-816624.29045194,0.00015,2]
[331088791,1720074645060,-4704.000003,0.00015,2]
[331088794,1720074645071,-1407.0,0.00015,2]
[331088798,1720074645109,-291.82524622,0.00015,2]
[331088801,1720074645120,-15734.20194805,0.00015,2]
[331088803,1720074645132,-5696.4556927,0.00015,2]
[331088935,1720074646341,-2558.97421518,0.00015,2]
[331088953,1720074646495,-369.31355161,0.00015,2]
[331088955,1720074646507,-802.92499999,0.00015,2]
[331088978,1720074646721,-293.78349,0.00015,2]
[331089062,1720074731730,-2584.0785,0.00013416,2]
[331089063,1720074758927,799.5129,0.00012073,2]
[331089064,1720074813385,-1515.05,0.000222,25]
[331089065,1720074813604,-1388.0,0.000223,25]
[331089066,1720074813632,-2881.86,0.00022465,15]
[331089067,1720074813657,-2881.86,0.00022739,16]
[331089068,1720074813684,-238.36,0.000229,31]
[331089069,1720074813713,-250.0,0.00023,30]
[331089070,1720074813735,-2881.86,0.00023013,17]
[331089071,1720074813761,-2881.86,0.00023287,18]
[331089072,1720074813788,-2881.86,0.00023561,19]
[331089073,1720074813813,-2881.86,0.00023835,20]
[331089074,1720074813836,-8002.7721454,0.00024,15]
[331089075,1720074813858,-2000.0,0.00024,30]
[331089076,1720074813882,-2881.86,0.00024109,21]
[331089077,1720074813906,-2881.86,0.00024383,22]
[331089078,1720074813932,-2881.86,0.00024657,23]
[331089079,1720074813958,-2881.86,0.00024931,24]
[331089080,1720074813983,-900.0,0.00025,26]
[331089081,1720074814006,-1539.94354171,0.00025,30]
[331089082,1720074814029,-922.85566081,0.00025,30]
[331089083,1720074814052,-2849.57563088,0.00025,30]
[331089084,1720074814075,-2110.0,0.00025,15]
[331089085,1720074814100,-2881.86,0.00025205,25]
[331089086,1720074814124,-2881.9456061,0.00025479,26]
[331089087,1720074814146,-2110.0,0.000255,15]
[331089088,1720074814171,-710.33237908,0.00026,30]
[331089089,1720074814195,-2110.0,0.00026,15]
[331089090,1720074814218,-900.0,0.00026,27]
[331089091,1720074814242,-2110.0,0.000265,15]
[331089092,1720074814266,-2110.0,0.00027,15]
[331089093,1720074814290,-900.0,0.00027,28]
[331089094,1720074814314,-1028.0,0.00027,15]
[331089095,1720074814340,-1407.68267767,0.0002736,120]
[331089096,1720074814364,-162.53938847,0.00027397,90]
[331089097,1720074814388,-1981.37612484,0.00027397,20]
[331089098,1720074814411,-200.0,0.00027397,60]
[331089099,1720074814435,-395.12084875,0.00027397,30]
[331089100,1720074814461,-2110.0,0.000275,15]
[331089101,1720074814484,-1028.0,0.000275,16]
[331089102,1720074814509,-395.12084875,0.00027534,30]
[331089103,1720074814533,-395.12084875,0.00027644,30]
[331089104,1720074814558,-395.12084875,0.00027753,30]
[331089105,1720074814581,-391.0,0.0002783,15]
[331089106,1720074814606,-2110.0,0.00028,15]
[331089107,1720074814630,-693.6,0.00028,120]
[331089108,1720074814654,-900.0,0.00028,29]
[331089109,1720074814677,-1028.0,0.00028,16]
[331089110,1720074814700,-1208.0,0.00028443,30]
[331089111,1720074814723,-2110.0,0.000285,15]
[331089112,1720074814746,-1028.0,0.000285,17]
[331089113,1720074814771,-62450.32494813,0.000288,20]
[331089114,1720074814795,-2010.54879086,0.0002899,20]
[331089115,1720074814818,-2110.0,0.00029,15]
[331089116,1720074814843,-900.0,0.00029,30]
[331089117,1720074814867,-1028.0,0.00029,17]
[331089118,1720074814890,-2110.0,0.000295,15]
[331089119,1720074814915,-1028.0,0.000295,18]
[331089120,1720074814941,-26676.11316787,0.0003,30]
[331089121,1720074814964,-1145.7,0.0003,30]
[331089122,1720074814987,-1553.26175298,0.0003,30]
[331089123,1720074815011,-2110.0,0.0003,15]
[331089124,1720074815035,-600.0,0.0003,120]
[331089125,1720074815058,-900.0,0.0003,31]
[331089126,1720074815082,-1028.0,0.0003,18]
[331089127,1720074815105,-200.0,0.00030137,60]
[331089128,1720074815128,-2110.0,0.000305,15]
[331089129,1720074815150,-1028.0,0.000305,19]
[331089130,1720074815172,-548.0,0.00030613,30]
[331089131,1720074815194,-250.0,0.000308,30]
[331089132,1720074815227,-150.0,0.00030908,120]
[331089133,1720074815249,-2110.0,0.00031,15]
[331089134,1720074815271,-900.0,0.00031,32]
[331089135,1720074815296,-1028.0,0.00031,19]
[331089136,1720074815319,-538.51680378,0.000314,30]
[331089137,1720074815366,-2110.0,0.000315,15]
[331089138,1720074815390,-1029.244843,0.000315,20]
[331089139,1720074815413,-500.00000001,0.0003179,20]
[331089140,1720074815437,-2110.0,0.00032,15]
[331089141,1720074815459,-1000.0,0.00032,120]
[331089142,1720074815480,-900.0,0.00032,33]
[331089143,1720074815503,-150.0,0.00032018,120]
[331089144,1720074815528,-150.0,0.00032358,120]
[331089145,1720074815551,-2110.0,0.000325,15]
[331089146,1720074815575,-739.65032946,0.00032876,30]
[331089147,1720074815598,-500.0,0.00032876,120]
[331089148,1720074815620,-500.0,0.00032876,120]
[331089149,1720074815642,-500.0,0.00032876,120]
[331089150,1720074815665,-190.46844624,0.00032876,120]
[331089151,1720074815687,-2533.09,0.00032876,16]
[331089152,1720074815709,-577.02,0.00032876,120]
[331089153,1720074815732,-577.02,0.00032876,120]
[331089154,1720074815755,-577.02,0.00032876,120]
[331089155,1720074815779,-577.02,0.00032876,120]
[331089156,1720074815802,-577.02,0.00032876,120]
[331089157,1720074815824,-577.02,0.00032876,120]
[331089158,1720074815846,-577.02,0.00032876,120]
[331089159,1720074815869,-577.02,0.00032876,120]
[331089160,1720074815892,-577.02,0.00032876,120]
[331089161,1720074815914,-577.02,0.00032876,120]
[331089162,1720074815937,-577.02,0.00032876,120]
[331089163,1720074815960,-577.02,0.00032876,120]
[331089164,1720074815982,-577.02,0.00032876,120]
[331089165,1720074816180,-577.02,0.00032876,120]
[331089166,1720074816202,-577.02,0.00032876,120]
[331089167,1720074816226,-577.02,0.00032876,120]
[331089168,1720074816248,-577.02,0.00032876,120]
[331089169,1720074816269,-577.02,0.00032876,120]
[331089170,1720074816294,-577.02,0.00032876,120]
[331089171,1720074816316,-577.02,0.00032876,120]
[331089172,1720074816338,-577.02,0.00032876,120]
[331089173,1720074816360,-577.02,0.00032876,120]
[331089174,1720074816384,-577.02,0.00032876,120]
[331089175,1720074816408,-577.10264769,0.00032876,120]
[331089176,1720074816429,-200.0,0.00032877,60]
[331089177,1720074816451,-350.0,0.00033,15]
[331089178,1720074816474,-1818.71621689,0.00033,120]
[331089179,1720074816496,-2110.0,0.00033,15]
[331089180,1720074816518,-900.0,0.00033,34]
[331089181,1720074816540,-1017.59976982,0.00033,120]
[331089182,1720074816564,-1068.6,0.00033151,120]
[331089183,1720074816587,-293.84,0.00033151,120]
[331089184,1720074816611,-2110.0,0.000335,15]
[331089185,1720074816633,-768.0,0.00033674,30]
[331089186,1720074816655,-1143.0,0.00033737,20]
[331089187,1720074816677,-2110.0,0.00034,15]
[331089188,1720074816700,-1000.0,0.00034,120]
[331089189,1720074816724,-2533.09,0.00034246,18]
[331089190,1720074816750,-2416.0,0.00034452,120]
[331089191,1720074816774,-1143.0,0.00034454,20]
[331089192,1720074816796,-958.36,0.000345,15]
[331089193,1720074816821,-2917.20658862,0.00035,30]
[331089194,1720074816843,-200.0,0.00035,120]
[331089195,1720074816867,-1571.02627295,0.00035,30]
[331089196,1720074816889,-1143.0,0.00035172,20]
[331089197,1720074816912,-2533.09,0.00035616,20]
[331089198,1720074816936,-200.0,0.00035616,60]
[331089199,1720074816959,-1000.0,0.00035616,30]
[331089200,1720074816980,-1000.0,0.00035769,30]
[331089201,1720074817002,-1143.0,0.0003589,20]
[331089202,1720074817024,-1000.0,0.00035921,30]
[331089203,1720074817047,-1000.0,0.00036,120]
[331089204,1720074817069,-1000.0,0.00036073,30]
[331089205,1720074817091,-1000.0,0.00036225,30]
[331089206,1720074817113,-1000.0,0.00036377,30]
[331089207,1720074817135,-1000.0,0.0003653,30]
[331089208,1720074817156,-1143.0,0.00036608,20]
[331089209,1720074817178,-1000.0,0.00036682,30]
[331089210,1720074817201,-1000.0,0.00036834,30]
[331089211,1720074817223,-2533.09,0.00036986,22]
[331089212,1720074817245,-1000.0,0.00036986,30]
[331089213,1720074817267,-1075.0,0.00037042,30]
[331089214,1720074817292,-1000.0,0.00037139,30]
[331089215,1720074817314,-1000.0,0.00037291,30]
[331089216,1720074817338,-1143.0,0.00037326,20]
[331089217,1720074817359,-1000.0,0.00037443,30]
[331089218,1720074817384,-1000.0,0.00037595,30]
[331089219,1720074817405,-1000.0,0.00037747,30]
[331089220,1720074817427,-1000.0,0.000379,30]
[331089221,1720074817449,-153.5116475,0.00037999,120]
[331089222,1720074817471,-656.4759871,0.00038,120]
[331089223,1720074817493,-510.32809669,0.00038,30]
[331089224,1720074817514,-289.93703743,0.00038,30]
[331089225,1720074817536,-1000.0,0.00038,30]
[331089226,1720074817558,-483.41225835,0.00038,120]
[331089227,1720074817580,-172.62027684,0.00038,90]
[331089228,1720074817602,-1000.0,0.00038,120]
[331089229,1720074817624,-1367.68099303,0.00038,120]
[331089230,1720074817646,-1143.0,0.00038044,20]
[331089231,1720074817668,-1000.0,0.00038052,30]
[331089232,1720074817690,-1000.0,0.00038204,30]
[331089233,1720074817712,-150.0,0.00038332,120]
[331089234,1720074817737,-500.0,0.00038356,20]
[331089235,1720074817760,-500.0,0.00038356,20]
[331089236,1720074817786,-500.0,0.00038356,20]
[331089237,1720074817809,-500.0,0.00038356,20]
[331089238,1720074817830,-500.0,0.00038356,20]
[331089239,1720074817852,-500.0,0.00038356,20]
[331089240,1720074817873,-500.0,0.00038356,20]
[331089241,1720074817895,-482.83998848,0.00038356,20]
[331089242,1720074817918,-2533.09,0.00038356,24]
[331089243,1720074817939,-275.65798287,0.00038356,60]
[331089244,1720074817960,-1000.0,0.00038356,30]
[331089245,1720074817982,-1385.25816538,0.000384,33]
[331089246,1720074818004,-1000.0,0.00038508,30]
[331089247,1720074818025,-1000.0,0.00038661,30]
[331089248,1720074818047,-70229.47400122,0.000388,45]
[331089249,1720074818068,-196.52790712,0.00038807,40]
[331089250,1720074818091,-177.40926763,0.00038807,40]
[331089251,1720074818113,-182.63173799,0.00038807,40]
[331089252,1720074818135,-1772.61711405,0.00038807,40]
[331089253,1720074818156,-1000.0,0.00038813,30]
[331089254,1720074818178,-1191.12710394,0.000389,30]
[331089255,1720074818200,-1000.0,0.00038965,30]
[331089256,1720074818223,-2651.48163754,0.00039,120]
[331089257,1720074818243,-2780.32748808,0.00039,120]
[331089258,1720074818266,-638.57537859,0.00039,15]
[331089259,1720074818291,-337.67885367,0.00039,120]
[331089260,1720074818316,-1000.0,0.00039,35]
[331089261,1720074818338,-1000.0,0.00039117,30]
[331089262,1720074818360,-1000.0,0.00039269,30]
[331089263,1720074818384,-1000.0,0.00039422,30]
[331089264,1720074818407,-2597.1,0.000395,30]
[331089265,1720074818429,-1000.0,0.00039574,30]
[331089266,1720074818450,-2216.59209285,0.000397,60]
[331089267,1720074818584,-2533.09,0.00039726,26]
[331089268,1720074818631,-1000.0,0.00039726,30]
[331089269,1720074818653,-1000.0,0.00039878,30]
[331089270,1720074818675,-409.0,0.00039986,90]
[331089271,1720074818697,-250.0,0.00039999,30]
[331089272,1720074818720,-1000.0,0.0004,20]
[331089273,1720074818743,-890.0,0.0004,15]
[331089274,1720074818765,-954.70675176,0.0004,25]
[331089275,1720074818789,-151.0,0.0004,120]
[331089276,1720074818812,-7723.88858816,0.0004,30]
[331089277,1720074818834,-172.42222222,0.0004,120]
[331089278,1720074818857,-200.0,0.0004,120]
[331089279,1720074818879,-4164.76,0.0004,30]
[331089280,1720074818901,-1300.0,0.0004,120]
[331089281,1720074818924,-477.12749073,0.0004,30]
[331089282,1720074818947,-821.7454652,0.0004,120]
[331089283,1720074818977,-3593.66153983,0.0004,120]
[331089284,1720074819000,-394.94152632,0.0004,120]
[331089285,1720074819027,-1347.22417251,0.0004,120]
[331089286,1720074819053,-4187.30922828,0.0004,120]
[331089287,1720074819077,-2476.05203349,0.0004,60]
[331089288,1720074819103,-285.23873775,0.0004,30]
[331089289,1720074819128,-661.52387417,0.0004,120]
[331089290,1720074819153,-200.0,0.0004,120]
[331089291,1720074819177,-160.00520593,0.0004,30]
[331089292,1720074819202,-370.91696703,0.0004,30]
[331089293,1720074819226,-240.16706273,0.0004,30]
[331089294,1720074819251,-1000.0,0.0004,120]
[331089295,1720074819276,-500.95,0.0004,120]
[331089296,1720074819304,-1367.68099303,0.0004,120]
[331089297,1720074819328,-2083.43,0.0004,90]
[331089298,1720074819354,-337.52391897,0.0004,30]
[331089299,1720074819379,-300.0,0.0004,30]
[331089300,1720074819402,-500.0,0.0004,30]
[331089301,1720074819426,-500.0,0.0004,30]
[331089302,1720074819450,-500.0,0.0004,30]
[331089303,1720074819475,-500.0,0.0004,30]
[331089304,1720074819499,-500.0,0.0004,30]
[331089305,1720074819523,-500.0,0.0004,30]
[331089306,1720074819547,-500.0,0.0004,30]
[331089307,1720074819570,-500.0,0.0004,30]
[331089308,1720074819595,-200.0,0.0004,120]
[331089309,1720074819619,-3190.63923269,0.0004,30]
[331089310,1720074819643,-1418.57427113,0.0004,120]
[331089311,1720074819667,-341.98,0.0004,120]
[331089312,1720074819691,-2020.96,0.0004,120]
[331089313,1720074819715,-1000.0,0.0004003,30]
[331089314,1720074819739,-1000.0,0.00040183,30]
[331089315,1720074819764,-1000.0,0.00040335,30]
[331089316,1720074819790,-1320.56900005,0.00040344,15]
[331089317,1720074819814,-487.16013737,0.0004041,30]
[331089318,1720074819838,-1000.0,0.00040487,30]
[331089319,1720074819863,-1000.0,0.00040639,30]
[331089320,1720074819887,-2478.0,0.000407,81]
[331089321,1720074819912,-172.42222222,0.00040712,120]
[331089322,1720074819936,-554.0,0.00040746,60]
[331089323,1720074819961,-1000.0,0.00040791,30]
[331089324,1720074819984,-799.887116,0.000408,30]
[331089325,1720074820009,-150.0,0.00040877,120]
[331089326,1720074820034,-2490.93822885,0.00040888,60]
[331089327,1720074820059,-2707.24156582,0.000409,120]
[331089328,1720074820084,-2707.24156582,0.000409,120]
[331089329,1720074820108,-2707.24156582,0.000409,120]
[331089330,1720074820131,-1000.0,0.00040944,30]
[331089331,1720074820156,-689.93061324,0.00041,60]
[331089332,1720074820178,-500.0,0.00041,120]
[331089333,1720074820201,-152.0,0.00041041,31]
[331089334,1720074820225,-510.0,0.00041095,120]
[331089335,1720074820249,-2533.09,0.00041095,28]
[331089336,1720074820273,-1000.0,0.00041096,30]
[331089337,1720074820299,-151.0,0.00041123,120]
[331089338,1720074820323,-1000.0,0.00041248,30]
[331089339,1720074820348,-510.0,0.00041369,120]
[331089340,1720074820371,-600.0,0.00041369,30]
[331089341,1720074820396,-500.0,0.00041369,30]
[331089342,1720074820420,-1000.0,0.000414,30]
[331089343,1720074820444,-172.42222222,0.00041425,120]
[331089344,1720074820467,-1000.0,0.00041553,30]
[331089345,1720074820490,-236.0,0.000416,120]
[331089346,1720074820512,-510.0,0.00041643,120]
[331089347,1720074820538,-1000.0,0.00041705,30]
[331089348,1720074820565,-379.61756365,0.000418,120]
[331089349,1720074820588,-1000.0,0.00041857,30]
[331089350,1720074820611,-600.0,0.00041917,30]
[331089351,1720074820635,-510.0,0.00041917,120]
[331089352,1720074820664,-500.0,0.00041917,30]
[331089353,1720074820696,-382.97705904,0.00041918,30]
[331089354,1720074820723,-150.0,0.00041918,30]
[331089355,1720074820748,-150.0,0.00041918,30]
[331089356,1720074820777,-158.31414408,0.00041918,30]
[331089357,1720074820802,-150.54546001,0.00041918,30]
[331089358,1720074820825,-150.0,0.00041918,30]
[331089359,1720074820850,-150.46864412,0.00041918,30]
[331089360,1720074820874,-150.0,0.00041918,30]
[331089361,1720074820898,-150.0,0.00041918,30]
[331089362,1720074820924,-150.0,0.00041918,30]
[331089363,1720074820951,-382.97705904,0.00041965,30]
[331089364,1720074820976,-158.31414408,0.00041965,30]
[331089365,1720074821000,-150.0,0.00041976,30]
[331089366,1720074821023,-1047.90646524,0.00041992,120]
[331089367,1720074821046,-20168.55985716,0.00042,20]
[331089368,1720074821078,-1200.0,0.00042,120]
[331089369,1720074821101,-455.38173012,0.00042,120]
[331089370,1720074821123,-1009.84686665,0.00042,120]
[331089371,1720074821276,-589.75289823,0.00042,60]
[331089372,1720074821313,-1000.0,0.00042,120]
[331089373,1720074821339,-600.0,0.00042,120]
[331089374,1720074821364,-1000.0,0.00042009,30]
[331089375,1720074821392,-382.97705904,0.00042012,30]
[331089376,1720074821417,-158.31414408,0.00042012,30]
[331089377,1720074821441,-1039.0,0.00042034,30]
[331089378,1720074821466,-150.0,0.00042035,30]
[331089379,1720074821492,-382.97705904,0.00042059,30]
[331089380,1720074821516,-158.31414408,0.00042059,30]
[331089381,1720074821541,-150.0,0.00042094,30]
[331089382,1720074821568,-382.97705904,0.00042106,30]
[331089383,1720074821593,-158.31414408,0.00042106,30]
[331089384,1720074821620,-150.0,0.00042129,30]
[331089385,1720074821646,-172.42222222,0.00042137,120]
[331089386,1720074821674,-382.97705904,0.00042153,30]
[331089387,1720074821702,-158.31414408,0.00042153,30]
[331089388,1720074821727,-150.0,0.00042153,30]
[331089389,1720074821752,-1000.0,0.00042161,30]
[331089390,1720074821776,-243.88554963,0.00042191,120]
[331089391,1720074821800,-382.97705904,0.000422,30]
[331089392,1720074821824,-158.31414408,0.000422,30]
[331089393,1720074821848,-150.0,0.00042212,30]
[331089394,1720074821871,-151.0,0.00042247,120]
[331089395,1720074821895,-382.97705904,0.00042247,30]
[331089396,1720074821918,-158.31414408,0.00042247,30]
[331089397,1720074821941,-150.0,0.00042271,30]
[331089398,1720074821964,-150.0,0.00042276,30]
[331089399,1720074821988,-382.97705904,0.00042294,30]
[331089400,1720074822012,-158.31414408,0.00042294,30]
[331089401,1720074822036,-1000.0,0.00042314,30]
[331089402,1720074822061,-150.0,0.0004233,30]
[331089403,1720074822085,-382.97705904,0.00042341,30]
[331089404,1720074822109,-158.31414408,0.00042341,30]
[331089405,1720074822131,-150.0,0.00042341,30]
[331089406,1720074822155,-382.97705904,0.00042388,30]
[331089407,1720074822178,-158.31414408,0.00042388,30]
[331089408,1720074822202,-150.0,0.00042389,30]
[331089409,1720074822226,-382.97705904,0.00042435,30]
[331089410,1720074822248,-158.31414408,0.00042435,30]
[331089411,1720074822271,-150.0,0.00042448,30]
[331089412,1720074822298,-600.0,0.00042465,30]
[331089413,1720074822322,-2533.09,0.00042465,30]
[331089414,1720074822346,-397.51162878,0.00042465,30]
[331089415,1720074822369,-1000.0,0.00042466,30]
[331089416,1720074822396,-382.97705904,0.00042482,30]
[331089417,1720074822418,-158.31414408,0.00042482,30]
[331089418,1720074822441,-353.1,0.000425,120]
[331089419,1720074822463,-2861.53,0.000425,120]
[331089420,1720074822486,-150.0,0.00042507,30]
[331089421,1720074822508,-382.97705904,0.00042529,30]
[331089422,1720074822531,-158.31414408,0.00042529,30]
[331089423,1720074822555,-150.0,0.00042553,30]
[331089424,1720074822581,-150.0,0.00042566,30]
[331089425,1720074822605,-382.97705904,0.00042576,30]
[331089426,1720074822629,-158.31414408,0.00042576,30]
[331089427,1720074822651,-157.17287882,0.00042587,30]
[331089428,1720074822675,-1000.0,0.00042618,30]
[331089429,1720074822699,-382.97705904,0.00042623,30]
[331089430,1720074822722,-158.31414408,0.00042623,30]
[331089431,1720074822752,-150.0,0.00042625,30]
[331089432,1720074822777,-150.0,0.00042634,30]
[331089433,1720074822801,-382.97705904,0.0004267,30]
[331089434,1720074822824,-158.31414408,0.0004267,30]
[331089435,1720074822847,-150.0,0.00042684,30]
[331089436,1720074822870,-382.97705904,0.00042717,30]
[331089437,1720074822893,-158.31414408,0.00042717,30]
[331089438,1720074822917,-150.0,0.00042743,30]
[331089439,1720074822942,-382.97705904,0.00042764,30]
[331089440,1720074822969,-158.31414408,0.00042764,30]
[331089441,1720074822998,-150.0,0.00042764,30]
[331089442,1720074823023,-1000.0,0.0004277,30]
[331089443,1720074823047,-150.0,0.00042802,30]
[331089444,1720074823071,-382.97705904,0.00042811,30]
[331089445,1720074823094,-158.31414408,0.00042811,30]
[331089446,1720074823117,-2983.01173051,0.00042849,60]
[331089447,1720074823142,-172.42222222,0.00042849,120]
[331089448,1720074823166,-382.97705904,0.00042858,30]
[331089449,1720074823189,-158.31414408,0.00042858,30]
[331089450,1720074823212,-150.0,0.00042861,30]
[331089451,1720074823243,-245.43457684,0.0004288,120]
[331089452,1720074823275,-152.0,0.00042886,31]
[331089453,1720074823309,-3615.69285208,0.000429,120]
[331089454,1720074823340,-382.97705904,0.00042905,30]
[331089455,1720074823368,-158.31414408,0.00042905,30]
[331089456,1720074823393,-150.0,0.0004292,30]
[331089457,1720074823416,-1000.0,0.00042922,30]
[331089458,1720074823441,-382.97705904,0.00042953,30]
[331089459,1720074823470,-158.31414408,0.00042953,30]
[331089460,1720074823493,-150.0,0.00042976,30]
[331089461,1720074823518,-150.0,0.00042979,30]
[331089462,1720074823541,-38216.71367932,0.0004299,30]
[331089463,1720074823565,-150.0,0.00042992,30]
[331089464,1720074823589,-382.97705904,0.00043,30]
[331089465,1720074823613,-158.31414408,0.00043,30]
[331089466,1720074823641,-200000.0,0.00043,15]
[331089467,1720074823668,-4529.81433339,0.00043,30]
[331089468,1720074823693,-775.89976396,0.00043,120]
[331089469,1720074823718,-2735.36198605,0.00043,120]
[331089470,1720074823747,-216707.50955142,0.00043,60]
[331089471,1720074823772,-719.44,0.00043,120]
[331089472,1720074823806,-600.0,0.00043013,30]
[331089473,1720074823831,-150.0,0.00043038,30]
[331089474,1720074823858,-382.97705904,0.00043047,30]
[331089475,1720074824013,-158.31414408,0.00043047,30]
[331089476,1720074824039,-1000.0,0.00043075,30]
[331089477,1720074824067,-150.0,0.00043082,30]
[331089478,1720074824110,-382.97705904,0.00043094,30]
[331089479,1720074824136,-158.31414408,0.00043094,30]
[331089480,1720074824161,-150.0,0.00043097,30]
[331089481,1720074824187,-382.97705904,0.00043141,30]
[331089482,1720074824214,-158.31414408,0.00043141,30]
[331089483,1720074824240,-150.0,0.00043156,30]
[331089484,1720074824267,-382.97705904,0.00043188,30]
[331089485,1720074824293,-158.31414408,0.00043188,30]
[331089486,1720074824319,-150.0,0.00043188,30]
[331089487,1720074824346,-150.0,0.00043215,30]
[331089488,1720074824371,-1000.0,0.00043227,30]
[331089489,1720074824397,-382.97705904,0.00043235,30]
[331089490,1720074824424,-158.31414408,0.00043235,30]
[331089491,1720074824449,-150.0,0.00043273,30]
[331089492,1720074824475,-382.97705904,0.00043282,30]
[331089493,1720074824500,-158.31414408,0.00043282,30]
[331089494,1720074824525,-382.97705904,0.00043329,30]
[331089495,1720074824551,-158.31414408,0.00043329,30]
[331089496,1720074824576,-150.0,0.00043332,30]
[331089497,1720074824601,-150.0,0.00043351,30]
[331089498,1720074824625,-151.0,0.0004337,120]
[331089499,1720074824650,-382.97705904,0.00043376,30]
[331089500,1720074824675,-158.31414408,0.00043376,30]
[331089501,1720074824699,-1000.0,0.00043379,30]
[331089502,1720074824722,-150.0,0.00043391,30]